[Event "Titled Tuesday Blitz February 14 Early 2023"]
[White "Rian, Kapriaga"]
[Black "Melian, Juan Sebastian"]
[WhiteFideId "7103263"]
[BlackFideId "3706575"]
[WhiteElo "2089"]
[BlackElo "2293"]
[Result "0-1"]
[Round "05"]
[TimeControl "180+2"]
[Date "2023.02.15"]
[WhiteClock "0:00:02"]
[BlackClock "0:00:50"]

1. d4 {[%clk 0:03:00]}  Nf6 {[%clk 0:02:57]} 2. Nf3 {[%clk 0:03:00]}  e6 {[%clk 0:02:57]} 3. Bg5 {[%clk 0:02:58]}  Be7 {[%clk 0:02:53]} 4. e3 {[%clk 0:02:56]}  O-O {[%clk 0:02:54]} 5. Nbd2 {[%clk 0:02:55]}  c5 {[%clk 0:02:53]} 6. Bd3 {[%clk 0:02:52]}  b6 {[%clk 0:02:54]} 7. O-O {[%clk 0:02:50]}  Bb7 {[%clk 0:02:54]} 8. Qe2 {[%clk 0:02:45]}  cxd4 {[%clk 0:02:54]} 9. exd4 {[%clk 0:02:44]}  d6 {[%clk 0:02:52]} 10. c3 {[%clk 0:02:35]}  Nbd7 {[%clk 0:02:49]} 11. a4 {[%clk 0:02:33]}  a6 {[%clk 0:02:49]} 12. Nc4 {[%clk 0:02:32]}  Re8 {[%clk 0:02:48]} 13. Rfe1 {[%clk 0:02:29]}  Qc7 {[%clk 0:02:48]} 14. Ne3 {[%clk 0:02:28]}  Bf8 {[%clk 0:02:43]} 15. Rec1 {[%clk 0:02:25]}  e5 {[%clk 0:02:43]} 16. dxe5 {[%clk 0:02:21]}  dxe5 {[%clk 0:02:37]} 17. Nd2 {[%clk 0:01:28]}  Rad8 {[%clk 0:02:30]} 18. Bxa6 {[%clk 0:01:11]}  Bxa6 {[%clk 0:02:05]} 19. Qxa6 {[%clk 0:01:10]}  Nc5 {[%clk 0:02:06]} 20. Qe2 {[%clk 0:01:10]}  Rxd2 {[%clk 0:02:05]} 21. Qxd2 {[%clk 0:01:09]}  Nfe4 {[%clk 0:01:58]} 22. Qe2 {[%clk 0:00:30]}  Nxg5 {[%clk 0:01:56]} 23. Rd1 {[%clk 0:00:25]}  Nge6 {[%clk 0:01:52]} 24. Nd5 {[%clk 0:00:22]}  Qb7 {[%clk 0:01:52]} 25. Qb5 {[%clk 0:00:18]}  Rb8 {[%clk 0:01:38]} 26. b4 {[%clk 0:00:16]}  Ne4 {[%clk 0:01:33]} 27. f3 {[%clk 0:00:13]}  Nd6 {[%clk 0:01:17]} 28. Qd3 {[%clk 0:00:11]}  Rc8 {[%clk 0:01:15]} 29. Kh1 {[%clk 0:00:10]}  Nc4 {[%clk 0:01:13]} 30. Ne3 {[%clk 0:00:08]}  Nb2 {[%clk 0:01:12]} 31. Qd5 {[%clk 0:00:06]}  Qxd5 {[%clk 0:01:05]} 32. Rxd5 {[%clk 0:00:06]}  Rxc3 {[%clk 0:01:04]} 33. Nf5 {[%clk 0:00:05]}  g6 {[%clk 0:01:01]} 34. Nd6 {[%clk 0:00:04]}  Nxa4 {[%clk 0:00:56]} 35. Ne4 {[%clk 0:00:02]}  Rc2 {[%clk 0:00:52]} 36. h4 {[%clk 0:00:02]}  Nb2 {[%clk 0:00:50]} 0-1


[Site "https://www.chess.com"]

[Event "Titled Tuesday Blitz February 14 Early 2023"]
[White "Kaidanov, Gregory"]
[Black "Mazibuko, Khanya"]
[WhiteFideId "2008564"]
[BlackFideId "14321041"]
[WhiteElo "2559"]
[BlackElo "1913"]
[Result "1-0"]
[Round "05"]
[TimeControl "180+2"]
[Date "2023.02.15"]
[WhiteClock "0:01:47"]
[BlackClock "0:01:02"]

1. Nf3 {[%clk 0:02:59]}  Nf6 {[%clk 0:02:59]} 2. g3 {[%clk 0:02:59]}  g6 {[%clk 0:02:58]} 3. Bg2 {[%clk 0:03:00]}  Bg7 {[%clk 0:02:59]} 4. O-O {[%clk 0:03:00]}  O-O {[%clk 0:02:59]} 5. c4 {[%clk 0:03:00]}  c6 {[%clk 0:02:57]} 6. d4 {[%clk 0:02:58]}  d5 {[%clk 0:02:57]} 7. Ne5 {[%clk 0:02:58]}  Bf5 {[%clk 0:02:50]} 8. Nc3 {[%clk 0:02:56]}  dxc4 {[%clk 0:02:43]} 9. Nxc4 {[%clk 0:02:55]}  Be6 {[%clk 0:02:41]} 10. Ne5 {[%clk 0:02:45]}  Nbd7 {[%clk 0:02:33]} 11. Nd3 {[%clk 0:02:45]}  Nb6 {[%clk 0:02:28]} 12. Nc5 {[%clk 0:02:45]}  Bc8 {[%clk 0:02:26]} 13. e4 {[%clk 0:02:45]}  Nfd7 {[%clk 0:02:20]} 14. Nb3 {[%clk 0:02:26]}  Nf6 {[%clk 0:01:57]} 15. Qe2 {[%clk 0:02:25]}  Be6 {[%clk 0:01:56]} 16. Rd1 {[%clk 0:02:25]}  Bxb3 {[%clk 0:01:55]} 17. axb3 {[%clk 0:02:24]}  e6 {[%clk 0:01:47]} 18. Bf4 {[%clk 0:02:22]}  Nh5 {[%clk 0:01:45]} 19. Be3 {[%clk 0:02:22]}  Nf6 {[%clk 0:01:45]} 20. Bf4 {[%clk 0:02:20]}  Nh5 {[%clk 0:01:44]} 21. Be3 {[%clk 0:02:20]}  Nf6 {[%clk 0:01:44]} 22. Rac1 {[%clk 0:02:18]}  Qe7 {[%clk 0:01:42]} 23. Na4 {[%clk 0:02:15]}  Qb4 {[%clk 0:01:38]} 24. Nc5 {[%clk 0:02:13]}  Rab8 {[%clk 0:01:33]} 25. Bf4 {[%clk 0:02:12]}  Rbc8 {[%clk 0:01:29]} 26. Nxb7 {[%clk 0:02:09]}  Qxb3 {[%clk 0:01:25]} 27. Bd6 {[%clk 0:02:00]}  Rfe8 {[%clk 0:01:24]} 28. Bc5 {[%clk 0:01:49]}  Rb8 {[%clk 0:01:11]} 29. Nd6 {[%clk 0:01:47]}  Red8 {[%clk 0:01:06]} 30. Rc3 {[%clk 0:01:47]}  Qa4 {[%clk 0:01:02]} 31. Ra3 {[%clk 0:01:47]} 1-0


[Site "https://www.chess.com"]

[Event "Titled Tuesday Blitz February 14 Early 2023"]
[White "Pinheiro, Iung Alicio de O."]
[Black "Fan_Of_Chucky"]
[WhiteFideId "2104350"]
[WhiteElo "2306"]
[BlackElo "2323"]
[Result "1-0"]
[Round "05"]
[TimeControl "180+2"]
[Date "2023.02.15"]
[WhiteClock "0:00:16"]
[BlackClock "0:00:03"]

1. c4 {[%clk 0:02:51]}  Nf6 {[%clk 0:02:58]} 2. g3 {[%clk 0:02:51]}  d5 {[%clk 0:02:58]} 3. cxd5 {[%clk 0:02:50]}  Nxd5 {[%clk 0:02:59]} 4. Bg2 {[%clk 0:02:50]}  g6 {[%clk 0:02:59]} 5. Nc3 {[%clk 0:02:50]}  Nb6 {[%clk 0:02:59]} 6. d3 {[%clk 0:02:49]}  Bg7 {[%clk 0:02:59]} 7. Be3 {[%clk 0:02:38]}  c6 {[%clk 0:02:47]} 8. Qd2 {[%clk 0:02:35]}  Nd5 {[%clk 0:02:39]} 9. Bh6 {[%clk 0:02:29]}  Bxh6 {[%clk 0:02:26]} 10. Qxh6 {[%clk 0:02:27]}  Nxc3 {[%clk 0:02:25]} 11. bxc3 {[%clk 0:02:26]}  Qa5 {[%clk 0:02:26]} 12. Qg7 {[%clk 0:02:11]}  Rf8 {[%clk 0:02:24]} 13. Nf3 {[%clk 0:02:12]}  Nd7 {[%clk 0:02:22]} 14. O-O {[%clk 0:02:10]}  Nf6 {[%clk 0:02:22]} 15. c4 {[%clk 0:02:05]}  Qh5 {[%clk 0:02:05]} 16. h3 {[%clk 0:01:29]}  Bxh3 {[%clk 0:01:51]} 17. Bxh3 {[%clk 0:01:27]}  Qxh3 {[%clk 0:01:21]} 18. Ng5 {[%clk 0:01:27]}  Qh5 {[%clk 0:01:17]} 19. Ne4 {[%clk 0:01:26]}  Ng4 {[%clk 0:01:07]} 20. Kg2 {[%clk 0:01:16]}  Qh2+ {[%clk 0:00:40]} 21. Kf3 {[%clk 0:01:13]}  f5 {[%clk 0:00:28]} 22. Ng5 {[%clk 0:00:38]}  O-O-O {[%clk 0:00:07]} 23. Qxh7 {[%clk 0:00:24]}  Ne5+ {[%clk 0:00:06]} 24. Ke3 {[%clk 0:00:19]}  f4+ {[%clk 0:00:06]} 25. Kd2 {[%clk 0:00:20]}  Nxc4+ {[%clk 0:00:06]} 26. Kc3 {[%clk 0:00:19]}  Qxh7 {[%clk 0:00:06]} 27. Nxh7 {[%clk 0:00:20]}  Rh8 {[%clk 0:00:05]} 28. Ng5 {[%clk 0:00:20]}  Nd6 {[%clk 0:00:04]} 29. gxf4 {[%clk 0:00:20]}  Rhf8 {[%clk 0:00:03]} 30. Ne6 {[%clk 0:00:19]}  Nb5+ {[%clk 0:00:03]} 31. Kd2 {[%clk 0:00:19]}  Kd7 {[%clk 0:00:03]} 32. Nxf8+ {[%clk 0:00:19]}  Rxf8 {[%clk 0:00:03]} 33. e3 {[%clk 0:00:20]}  Nd6 {[%clk 0:00:03]} 34. Rg1 {[%clk 0:00:20]}  Rf6 {[%clk 0:00:03]} 35. Rg5 {[%clk 0:00:21]}  Nf7 {[%clk 0:00:03]} 36. Rg3 {[%clk 0:00:20]}  e5 {[%clk 0:00:03]} 37. fxe5 {[%clk 0:00:17]}  Nxe5 {[%clk 0:00:03]} 38. f4 {[%clk 0:00:16]}  Nf7 {[%clk 0:00:01]} 39. Rag1 {[%clk 0:00:16]}  Nh8 {[%clk 0:00:01]} 40. Rh1 {[%clk 0:00:15]}  Nf7 {[%clk 0:00:01]} 41. Rh7 {[%clk 0:00:15]}  Ke6 {[%clk 0:00:02]} 42. Rg7 {[%clk 0:00:15]}  Nd6 {[%clk 0:00:01]} 43. R3xg6 {[%clk 0:00:15]}  Nf5 {[%clk 0:00:01]} 44. Rxf6+ {[%clk 0:00:15]}  Kxf6 {[%clk 0:00:02]} 45. Rxb7 {[%clk 0:00:15]}  Nd6 {[%clk 0:00:03]} 46. Rxa7 {[%clk 0:00:16]} 1-0


[Site "https://www.chess.com"]

[Event "Titled Tuesday Blitz February 14 Early 2023"]
[White "Vaglio Munoz, Jaime"]
[Black "Jeet, Jain"]
[WhiteFideId "6500145"]
[BlackFideId "5073022"]
[WhiteElo "2174"]
[BlackElo "2199"]
[Result "0-1"]
[Round "05"]
[TimeControl "180+2"]
[Date "2023.02.15"]
[WhiteClock "0:00:08"]
[BlackClock "0:00:13"]

1. d4 {[%clk 0:03:00]}  Nf6 {[%clk 0:02:48]} 2. g3 {[%clk 0:03:00]}  g6 {[%clk 0:02:48]} 3. Bg2 {[%clk 0:03:00]}  d5 {[%clk 0:02:48]} 4. b3 {[%clk 0:02:59]}  Bg7 {[%clk 0:02:48]} 5. Bb2 {[%clk 0:02:59]}  O-O {[%clk 0:02:49]} 6. Nf3 {[%clk 0:03:00]}  b6 {[%clk 0:02:41]} 7. O-O {[%clk 0:02:35]}  Bb7 {[%clk 0:02:41]} 8. Re1 {[%clk 0:02:35]}  e6 {[%clk 0:02:37]} 9. Ne5 {[%clk 0:02:34]}  Nbd7 {[%clk 0:02:37]} 10. c4 {[%clk 0:02:32]}  c6 {[%clk 0:02:37]} 11. Nd3 {[%clk 0:02:27]}  Ne4 {[%clk 0:02:34]} 12. Nd2 {[%clk 0:02:26]}  f5 {[%clk 0:02:28]} 13. f3 {[%clk 0:02:25]}  Nxd2 {[%clk 0:02:23]} 14. Qxd2 {[%clk 0:02:26]}  dxc4 {[%clk 0:02:19]} 15. bxc4 {[%clk 0:02:25]}  c5 {[%clk 0:01:57]} 16. Nf4 {[%clk 0:02:24]}  Qf6 {[%clk 0:01:40]} 17. Rab1 {[%clk 0:02:11]}  cxd4 {[%clk 0:01:38]} 18. e3 {[%clk 0:02:10]}  e5 {[%clk 0:01:32]} 19. Nd5 {[%clk 0:02:07]}  Bxd5 {[%clk 0:01:31]} 20. cxd5 {[%clk 0:02:08]}  dxe3 {[%clk 0:01:29]} 21. Rxe3 {[%clk 0:02:06]}  Rfe8 {[%clk 0:01:27]} 22. f4 {[%clk 0:02:05]}  Qf7 {[%clk 0:01:18]} 23. d6 {[%clk 0:01:58]}  e4 {[%clk 0:01:14]} 24. Bf1 {[%clk 0:01:50]}  Rac8 {[%clk 0:01:07]} 25. Bb5 {[%clk 0:01:29]}  Red8 {[%clk 0:01:07]} 26. Ba3 {[%clk 0:01:22]}  Nc5 {[%clk 0:01:01]} 27. Rc1 {[%clk 0:01:18]}  Kh8 {[%clk 0:01:00]} 28. Bxc5 {[%clk 0:01:17]}  Rxc5 {[%clk 0:00:55]} 29. Rxc5 {[%clk 0:01:16]}  bxc5 {[%clk 0:00:56]} 30. d7 {[%clk 0:01:06]}  Bd4 {[%clk 0:00:55]} 31. Kg2 {[%clk 0:01:07]}  Bxe3 {[%clk 0:00:52]} 32. Qxe3 {[%clk 0:01:08]}  Qxa2+ {[%clk 0:00:52]} 33. Kh3 {[%clk 0:01:07]}  Qd5 {[%clk 0:00:47]} 34. Qa3 {[%clk 0:01:01]}  Rxd7 {[%clk 0:00:35]} 35. Bxd7 {[%clk 0:00:59]}  Qxd7 {[%clk 0:00:36]} 36. Qxc5 {[%clk 0:00:59]}  Kg7 {[%clk 0:00:36]} 37. Qc3+ {[%clk 0:00:40]}  Kf7 {[%clk 0:00:36]} 38. Qh8 {[%clk 0:00:36]}  Ke6 {[%clk 0:00:35]} 39. Qg8+ {[%clk 0:00:36]}  Kd6 {[%clk 0:00:34]} 40. Qc4 {[%clk 0:00:34]}  Qc6 {[%clk 0:00:24]} 41. Qd4+ {[%clk 0:00:33]}  Qd5 {[%clk 0:00:24]} 42. Qxa7 {[%clk 0:00:32]}  Qc5 {[%clk 0:00:22]} 43. Qxh7 {[%clk 0:00:30]}  e3 {[%clk 0:00:22]} 44. Qxg6+ {[%clk 0:00:30]}  Kc7 {[%clk 0:00:23]} 45. Qe8 {[%clk 0:00:29]}  Qd4 {[%clk 0:00:21]} 46. Qe7+ {[%clk 0:00:28]}  Kc6 {[%clk 0:00:20]} 47. Qe6+ {[%clk 0:00:26]}  Kb7 {[%clk 0:00:20]} 48. Qxf5 {[%clk 0:00:25]}  Qd2 {[%clk 0:00:12]} 49. Qe4+ {[%clk 0:00:24]}  Kb6 {[%clk 0:00:12]} 50. f5 {[%clk 0:00:24]}  e2 {[%clk 0:00:12]} 51. Qe6+ {[%clk 0:00:23]}  Kb5 {[%clk 0:00:12]} 52. Qb3+ {[%clk 0:00:22]}  Kc5 {[%clk 0:00:12]} 53. Qa3+ {[%clk 0:00:21]}  Kd4 {[%clk 0:00:13]} 54. Qd6+ {[%clk 0:00:20]}  Kc3 {[%clk 0:00:12]} 55. Qc5+ {[%clk 0:00:20]}  Kb2 {[%clk 0:00:11]} 56. Qb5+ {[%clk 0:00:19]}  Kc1 {[%clk 0:00:11]} 57. Qc4+ {[%clk 0:00:19]}  Qc2 {[%clk 0:00:11]} 58. Qf4+ {[%clk 0:00:17]}  Kd1 {[%clk 0:00:11]} 59. Qf3 {[%clk 0:00:14]}  Kd2 {[%clk 0:00:10]} 60. Qf2 {[%clk 0:00:14]}  Kc1 {[%clk 0:00:08]} 61. Qe3+ {[%clk 0:00:13]}  Qd2 {[%clk 0:00:08]} 62. Qc5+ {[%clk 0:00:13]}  Kd1 {[%clk 0:00:08]} 63. f6 {[%clk 0:00:10]}  e1=Q {[%clk 0:00:08]} 64. Qh5+ {[%clk 0:00:08]}  Qee2 {[%clk 0:00:08]} 65. Qf5 {[%clk 0:00:07]}  Qxh2+ {[%clk 0:00:08]} 66. Kg4 {[%clk 0:00:07]}  Qde2+ {[%clk 0:00:09]} 67. Kg5 {[%clk 0:00:08]}  Qhh5+ {[%clk 0:00:09]} 68. Kf4 {[%clk 0:00:08]}  Qef3+ {[%clk 0:00:09]} 69. Ke5 {[%clk 0:00:08]}  Qhxf5+ {[%clk 0:00:10]} 70. Kd6 {[%clk 0:00:08]}  Qxf6+ {[%clk 0:00:10]} 71. Kc5 {[%clk 0:00:09]}  Q3f5+ {[%clk 0:00:09]} 72. Kc4 {[%clk 0:00:08]}  Q6g5 {[%clk 0:00:10]} 73. g4 {[%clk 0:00:06]}  Qgxg4+ {[%clk 0:00:10]} 74. Kc3 {[%clk 0:00:07]}  Qff3+ {[%clk 0:00:11]} 75. Kb2 {[%clk 0:00:07]}  Qgg2+ {[%clk 0:00:12]} 76. Ka1 {[%clk 0:00:08]}  Qc3+ {[%clk 0:00:12]} 77. Kb1 {[%clk 0:00:08]}  Qgb2# {[%clk 0:00:13]} 0-1


[Site "https://www.chess.com"]

[Event "Titled Tuesday Blitz February 14 Early 2023"]
[White "Ljukin, Sergei"]
[Black "Lauridsen, Jesper Morch"]
[WhiteFideId "14102200"]
[BlackFideId "1401890"]
[WhiteElo "2362"]
[BlackElo "2309"]
[Result "1-0"]
[Round "05"]
[TimeControl "180+2"]
[Date "2023.02.15"]
[WhiteClock "0:00:06"]
[BlackClock "0:00:03"]

1. e4 {[%clk 0:02:53]}  c5 {[%clk 0:02:59]} 2. Nf3 {[%clk 0:02:53]}  d6 {[%clk 0:02:59]} 3. d4 {[%clk 0:02:53]}  cxd4 {[%clk 0:02:59]} 4. Nxd4 {[%clk 0:02:54]}  Nf6 {[%clk 0:03:00]} 5. Nc3 {[%clk 0:02:55]}  g6 {[%clk 0:03:00]} 6. Be3 {[%clk 0:02:55]}  Bg7 {[%clk 0:03:01]} 7. f3 {[%clk 0:02:55]}  O-O {[%clk 0:03:01]} 8. Qd2 {[%clk 0:02:56]}  Nc6 {[%clk 0:03:01]} 9. O-O-O {[%clk 0:02:57]}  Bd7 {[%clk 0:03:00]} 10. Kb1 {[%clk 0:02:48]}  Rc8 {[%clk 0:02:52]} 11. g4 {[%clk 0:02:39]}  Qa5 {[%clk 0:02:41]} 12. Nb3 {[%clk 0:02:37]}  Qc7 {[%clk 0:02:35]} 13. h4 {[%clk 0:02:35]}  h5 {[%clk 0:02:34]} 14. g5 {[%clk 0:02:32]}  Nh7 {[%clk 0:02:33]} 15. Nd5 {[%clk 0:02:19]}  Qd8 {[%clk 0:02:31]} 16. f4 {[%clk 0:02:18]}  Bg4 {[%clk 0:02:26]} 17. Be2 {[%clk 0:02:16]}  Bxe2 {[%clk 0:02:16]} 18. Qxe2 {[%clk 0:02:15]}  e6 {[%clk 0:02:12]} 19. Nc3 {[%clk 0:02:14]}  Bxc3 {[%clk 0:02:12]} 20. bxc3 {[%clk 0:02:13]}  Na5 {[%clk 0:02:11]} 21. f5 {[%clk 0:01:43]}  exf5 {[%clk 0:02:02]} 22. exf5 {[%clk 0:01:43]}  Re8 {[%clk 0:02:00]} 23. Qd3 {[%clk 0:01:41]}  Nf8 {[%clk 0:01:52]} 24. Rhf1 {[%clk 0:01:18]}  Nc4 {[%clk 0:01:24]} 25. fxg6 {[%clk 0:01:18]}  Rxe3 {[%clk 0:01:11]} 26. gxf7+ {[%clk 0:01:17]}  Kh8 {[%clk 0:01:10]} 27. Qd4+ {[%clk 0:01:13]}  Re5 {[%clk 0:01:10]} 28. Rf6 {[%clk 0:01:03]}  Qb6 {[%clk 0:00:49]} 29. Rh6+ {[%clk 0:00:47]}  Kg7 {[%clk 0:00:44]} 30. Qf4 {[%clk 0:00:47]}  Nd7 {[%clk 0:00:20]} 31. f8=Q+ {[%clk 0:00:19]}  Rxf8 {[%clk 0:00:16]} 32. Qxc4 {[%clk 0:00:19]}  Qf2 {[%clk 0:00:10]} 33. Rhxd6 {[%clk 0:00:16]}  Nb6 {[%clk 0:00:09]} 34. Qd3 {[%clk 0:00:10]}  Ref5 {[%clk 0:00:03]} 35. Nd4 {[%clk 0:00:06]} 1-0


[Site "https://www.chess.com"]

[Event "Titled Tuesday Blitz February 14 Early 2023"]
[White "Clawitter, Craig"]
[Black "Parpiev, Isaak"]
[WhiteFideId "2023105"]
[BlackFideId "34281576"]
[WhiteElo "2050"]
[BlackElo "2167"]
[Result "0-1"]
[Round "05"]
[TimeControl "180+2"]
[Date "2023.02.15"]
[WhiteClock "0:00:04"]
[BlackClock "0:00:31"]

1. e4 {[%clk 0:02:45]}  c5 {[%clk 0:02:55]} 2. Nf3 {[%clk 0:02:44]}  d6 {[%clk 0:02:55]} 3. d4 {[%clk 0:02:45]}  cxd4 {[%clk 0:02:56]} 4. Nxd4 {[%clk 0:02:43]}  Nf6 {[%clk 0:02:56]} 5. Nc3 {[%clk 0:02:44]}  e5 {[%clk 0:02:52]} 6. Bb5+ {[%clk 0:02:41]}  Bd7 {[%clk 0:02:52]} 7. Bxd7+ {[%clk 0:02:40]}  Qxd7 {[%clk 0:02:53]} 8. Nf5 {[%clk 0:02:40]}  g6 {[%clk 0:01:50]} 9. Ne3 {[%clk 0:02:19]}  Bg7 {[%clk 0:01:44]} 10. Ned5 {[%clk 0:02:19]}  Nxd5 {[%clk 0:01:42]} 11. Nxd5 {[%clk 0:02:19]}  O-O {[%clk 0:01:43]} 12. Bh6 {[%clk 0:02:18]}  Nc6 {[%clk 0:01:41]} 13. c3 {[%clk 0:02:08]}  f5 {[%clk 0:01:34]} 14. Bxg7 {[%clk 0:02:04]}  Kxg7 {[%clk 0:01:32]} 15. Qd3 {[%clk 0:01:35]}  Rf7 {[%clk 0:01:26]} 16. O-O {[%clk 0:01:30]}  f4 {[%clk 0:01:24]} 17. Rfd1 {[%clk 0:01:27]}  Rd8 {[%clk 0:01:21]} 18. f3 {[%clk 0:01:07]}  g5 {[%clk 0:01:19]} 19. Rd2 {[%clk 0:01:01]}  h5 {[%clk 0:01:14]} 20. Rad1 {[%clk 0:01:00]}  g4 {[%clk 0:01:08]} 21. b4 {[%clk 0:00:39]}  Ne7 {[%clk 0:01:01]} 22. Nxe7 {[%clk 0:00:13]}  Qxe7 {[%clk 0:01:00]} 23. Qe2 {[%clk 0:00:10]}  Qe6 {[%clk 0:00:55]} 24. Rd5 {[%clk 0:00:08]}  Rf6 {[%clk 0:00:54]} 25. Kh1 {[%clk 0:00:07]}  Rg6 {[%clk 0:00:53]} 26. c4 {[%clk 0:00:06]}  Rg8 {[%clk 0:00:33]} 27. Rxd6 {[%clk 0:00:04]}  Qxd6 {[%clk 0:00:33]} 28. Rxd6 {[%clk 0:00:05]}  Rxd6 {[%clk 0:00:34]} 29. fxg4 {[%clk 0:00:04]}  Rgd8 {[%clk 0:00:32]} 30. h3 {[%clk 0:00:04]}  Rd2 {[%clk 0:00:31]} 0-1


[Site "https://www.chess.com"]

[Event "Titled Tuesday Blitz February 14 Early 2023"]
[White "Cella, Glaucio Dalla Cortt"]
[Black "Zaksaite, Salomeja"]
[WhiteFideId "2119455"]
[BlackFideId "12801496"]
[WhiteElo "1894"]
[BlackElo "2283"]
[Result "1-0"]
[Round "05"]
[TimeControl "180+2"]
[Date "2023.02.15"]
[WhiteClock "0:00:50"]
[BlackClock "0:00:04"]

1. e4 {[%clk 0:03:00]}  c5 {[%clk 0:02:59]} 2. Nf3 {[%clk 0:03:00]}  Nc6 {[%clk 0:02:59]} 3. c3 {[%clk 0:03:00]}  Nf6 {[%clk 0:02:54]} 4. e5 {[%clk 0:03:00]}  Nd5 {[%clk 0:02:54]} 5. d4 {[%clk 0:03:01]}  cxd4 {[%clk 0:02:55]} 6. cxd4 {[%clk 0:03:02]}  e6 {[%clk 0:02:55]} 7. Nc3 {[%clk 0:03:00]}  Nxc3 {[%clk 0:02:54]} 8. bxc3 {[%clk 0:03:01]}  d6 {[%clk 0:02:55]} 9. Bd3 {[%clk 0:02:48]}  dxe5 {[%clk 0:02:54]} 10. dxe5 {[%clk 0:02:49]}  Qc7 {[%clk 0:02:49]} 11. O-O {[%clk 0:02:49]}  Bd7 {[%clk 0:02:48]} 12. Re1 {[%clk 0:02:44]}  O-O-O {[%clk 0:02:47]} 13. Rb1 {[%clk 0:02:41]}  f6 {[%clk 0:02:37]} 14. Be3 {[%clk 0:02:33]}  fxe5 {[%clk 0:02:33]} 15. Qe2 {[%clk 0:02:26]}  Be7 {[%clk 0:02:17]} 16. Be4 {[%clk 0:02:09]}  Rhf8 {[%clk 0:01:20]} 17. Bxa7 {[%clk 0:01:55]}  Nxa7 {[%clk 0:01:14]} 18. Bxb7+ {[%clk 0:01:56]}  Qxb7 {[%clk 0:01:13]} 19. Rxb7 {[%clk 0:01:56]}  Kxb7 {[%clk 0:01:13]} 20. Nxe5 {[%clk 0:01:42]}  Bc5 {[%clk 0:00:55]} 21. Rb1+ {[%clk 0:01:13]}  Kc7 {[%clk 0:00:45]} 22. Qc4 {[%clk 0:01:13]}  Kd6 {[%clk 0:00:18]} 23. Rd1+ {[%clk 0:01:13]}  Kxe5 {[%clk 0:00:18]} 24. Qxc5+ {[%clk 0:01:14]}  Kf6 {[%clk 0:00:18]} 25. Qxa7 {[%clk 0:01:14]}  Bc6 {[%clk 0:00:17]} 26. Rxd8 {[%clk 0:00:58]}  Rxd8 {[%clk 0:00:16]} 27. h3 {[%clk 0:00:59]}  Rd1+ {[%clk 0:00:15]} 28. Kh2 {[%clk 0:00:59]}  Bd5 {[%clk 0:00:15]} 29. a4 {[%clk 0:00:57]}  Rd2 {[%clk 0:00:15]} 30. a5 {[%clk 0:00:57]}  Ra2 {[%clk 0:00:14]} 31. c4 {[%clk 0:00:55]}  Bc6 {[%clk 0:00:07]} 32. Qd4+ {[%clk 0:00:52]}  Kf7 {[%clk 0:00:05]} 33. Qb6 {[%clk 0:00:52]}  Be4 {[%clk 0:00:04]} 34. a6 {[%clk 0:00:50]} 1-0


[Site "https://www.chess.com"]

[Event "Titled Tuesday Blitz February 14 Early 2023"]
[White "Lesbekova, Assel"]
[Black "Jaskolka, Tomasz"]
[WhiteFideId "13713248"]
[BlackFideId "1170791"]
[WhiteElo "1772"]
[BlackElo "2238"]
[Result "0-1"]
[Round "05"]
[TimeControl "180+2"]
[Date "2023.02.15"]
[WhiteClock "0:00:03"]
[BlackClock "0:00:07"]

1. e4 {[%clk 0:02:59]}  c5 {[%clk 0:02:58]} 2. Nc3 {[%clk 0:02:57]}  e6 {[%clk 0:02:55]} 3. Nge2 {[%clk 0:02:56]}  Nc6 {[%clk 0:02:51]} 4. g3 {[%clk 0:02:55]}  Qc7 {[%clk 0:02:47]} 5. Bg2 {[%clk 0:02:55]}  a6 {[%clk 0:02:47]} 6. O-O {[%clk 0:02:50]}  Nf6 {[%clk 0:02:37]} 7. d4 {[%clk 0:02:49]}  cxd4 {[%clk 0:02:37]} 8. Nxd4 {[%clk 0:02:50]}  Nxd4 {[%clk 0:02:36]} 9. Qxd4 {[%clk 0:02:50]}  Bc5 {[%clk 0:02:37]} 10. Qd3 {[%clk 0:02:49]}  d6 {[%clk 0:02:34]} 11. Bf4 {[%clk 0:02:46]}  Nd7 {[%clk 0:01:51]} 12. Rad1 {[%clk 0:02:35]}  Ne5 {[%clk 0:01:46]} 13. Qe2 {[%clk 0:02:35]}  Bd7 {[%clk 0:01:38]} 14. Kh1 {[%clk 0:02:30]}  O-O {[%clk 0:01:31]} 15. Bc1 {[%clk 0:02:28]}  Bb4 {[%clk 0:01:22]} 16. f4 {[%clk 0:02:26]}  Bxc3 {[%clk 0:01:22]} 17. fxe5 {[%clk 0:02:17]}  Bxe5 {[%clk 0:01:21]} 18. b3 {[%clk 0:02:15]}  Rac8 {[%clk 0:01:11]} 19. c4 {[%clk 0:02:14]}  b5 {[%clk 0:01:08]} 20. Bb2 {[%clk 0:02:09]}  Bxb2 {[%clk 0:00:57]} 21. Qxb2 {[%clk 0:02:08]}  bxc4 {[%clk 0:00:57]} 22. bxc4 {[%clk 0:02:09]}  Ba4 {[%clk 0:00:44]} 23. Rd4 {[%clk 0:01:56]}  e5 {[%clk 0:00:37]} 24. Rd2 {[%clk 0:01:44]}  Rfd8 {[%clk 0:00:19]} 25. Rc1 {[%clk 0:01:43]}  Qc5 {[%clk 0:00:18]} 26. Qc3 {[%clk 0:01:16]}  Rb8 {[%clk 0:00:17]} 27. Qf3 {[%clk 0:01:11]}  Bc6 {[%clk 0:00:14]} 28. Rf2 {[%clk 0:01:05]}  Rb7 {[%clk 0:00:09]} 29. h4 {[%clk 0:01:03]}  Rdb8 {[%clk 0:00:09]} 30. Rcc2 {[%clk 0:00:56]}  f6 {[%clk 0:00:05]} 31. Qf5 {[%clk 0:00:50]}  Bd7 {[%clk 0:00:05]} 32. Qf3 {[%clk 0:00:50]}  Be6 {[%clk 0:00:06]} 33. Qd3 {[%clk 0:00:42]}  Rb4 {[%clk 0:00:06]} 34. Bf1 {[%clk 0:00:39]}  a5 {[%clk 0:00:03]} 35. Rfd2 {[%clk 0:00:39]}  Rc8 {[%clk 0:00:04]} 36. Qxd6 {[%clk 0:00:39]}  Qxd6 {[%clk 0:00:04]} 37. Rxd6 {[%clk 0:00:39]}  Bxc4 {[%clk 0:00:04]} 38. Bxc4+ {[%clk 0:00:27]}  Rbxc4 {[%clk 0:00:04]} 39. Rd8+ {[%clk 0:00:21]}  Rxd8 {[%clk 0:00:04]} 40. Rxc4 {[%clk 0:00:21]}  Rd2 {[%clk 0:00:04]} 41. Ra4 {[%clk 0:00:21]}  Rd4 {[%clk 0:00:04]} 42. Rxa5 {[%clk 0:00:21]}  Rxe4 {[%clk 0:00:04]} 43. Ra7 {[%clk 0:00:19]}  Re2 {[%clk 0:00:05]} 44. a4 {[%clk 0:00:19]}  Ra2 {[%clk 0:00:05]} 45. a5 {[%clk 0:00:20]}  h6 {[%clk 0:00:06]} 46. a6 {[%clk 0:00:20]}  Kh7 {[%clk 0:00:07]} 47. h5 {[%clk 0:00:20]}  e4 {[%clk 0:00:06]} 48. Kg1 {[%clk 0:00:19]}  f5 {[%clk 0:00:06]} 49. Kf1 {[%clk 0:00:17]}  Kg8 {[%clk 0:00:06]} 50. Ke1 {[%clk 0:00:16]}  Kf8 {[%clk 0:00:07]} 51. Kd1 {[%clk 0:00:15]}  Ra3 {[%clk 0:00:07]} 52. Ke2 {[%clk 0:00:14]}  Rxg3 {[%clk 0:00:07]} 53. Ra8+ {[%clk 0:00:15]}  Kf7 {[%clk 0:00:07]} 54. a7 {[%clk 0:00:15]}  Ra3 {[%clk 0:00:08]} 55. Kf2 {[%clk 0:00:14]}  f4 {[%clk 0:00:08]} 56. Ke2 {[%clk 0:00:15]}  Ra2+ {[%clk 0:00:09]} 57. Ke1 {[%clk 0:00:14]}  f3 {[%clk 0:00:09]} 58. Rb8 {[%clk 0:00:09]}  Rxa7 {[%clk 0:00:08]} 59. Rb4 {[%clk 0:00:09]}  Re7 {[%clk 0:00:08]} 60. Kf2 {[%clk 0:00:09]}  Kf6 {[%clk 0:00:09]} 61. Ke3 {[%clk 0:00:08]}  Kf5 {[%clk 0:00:09]} 62. Rb5+ {[%clk 0:00:07]}  Re5 {[%clk 0:00:09]} 63. Rb7 {[%clk 0:00:07]}  g5 {[%clk 0:00:07]} 64. Rf7+ {[%clk 0:00:05]}  Kg4 {[%clk 0:00:07]} 65. Rh7 {[%clk 0:00:04]}  Re6 {[%clk 0:00:06]} 66. Ra7 {[%clk 0:00:02]}  Kg3 {[%clk 0:00:06]} 67. Ra1 {[%clk 0:00:02]}  Kg4 {[%clk 0:00:06]} 68. Rh1 {[%clk 0:00:02]}  Kf5 {[%clk 0:00:05]} 69. Rh2 {[%clk 0:00:02]}  Rd6 {[%clk 0:00:05]} 70. Ra2 {[%clk 0:00:02]}  Rd3+ {[%clk 0:00:06]} 71. Kf2 {[%clk 0:00:02]}  Kf4 {[%clk 0:00:06]} 72. Ra8 {[%clk 0:00:03]}  Rd2+ {[%clk 0:00:06]} 73. Ke1 {[%clk 0:00:03]}  Rb2 {[%clk 0:00:07]} 74. Rf8+ {[%clk 0:00:03]}  Ke3 {[%clk 0:00:07]} 75. Rd8 {[%clk 0:00:03]}  Rb1+ {[%clk 0:00:07]} 0-1


[Site "https://www.chess.com"]